bitfinex/quotes_BTCUSD_20241004
["timestamp","ask_amount","ask_price","bid_price","bid_amount"]
[1728069285940,0.0839,62481.0,62480.0,0.644201]
[1728069286172,0.0839,62481.0,62480.0,0.645201]
[1728069287364,0.0839,62481.0,62480.0,0.640201]
[1728069287597,0.0839,62481.0,62480.0,0.662201]
[1728069287826,0.0839,62481.0,62480.0,0.652201]
[1728069288067,0.0839,62481.0,62480.0,0.649201]
[1728069288293,0.0839,62481.0,62480.0,0.650201]
[1728069288518,0.0839,62481.0,62480.0,0.660201]
[1728069288999,0.0839,62481.0,62480.0,0.650201]
[1728069289241,0.0839,62481.0,62480.0,0.659201]
[1728069289494,0.0839,62481.0,62480.0,0.650201]
[1728069289984,0.08697252,62481.0,62480.0,0.650201]
[1728069290222,0.17897252,62481.0,62480.0,0.650201]
[1728069290958,0.17897252,62481.0,62480.0,0.640201]
[1728069291177,0.17897252,62481.0,62480.0,0.651201]
[1728069291396,0.17897252,62481.0,62480.0,0.661201]
[1728069291617,0.17979352,62481.0,62480.0,0.640201]
[1728069291848,0.17979352,62481.0,62480.0,0.659201]
[1728069292297,0.17979352,62481.0,62480.0,0.649201]
[1728069292738,0.17979352,62481.0,62480.0,0.644201]
[1728069292952,0.17979352,62481.0,62480.0,0.647201]
[1728069293862,0.17979352,62481.0,62480.0,0.643201]
[1728069294310,0.18174298,62481.0,62480.0,0.645201]
[1728069294533,0.17979352,62481.0,62480.0,0.649201]
[1728069295235,0.17979352,62481.0,62480.0,0.645201]
[1728069295447,0.17979352,62481.0,62480.0,0.640201]
[1728069295675,0.17979352,62481.0,62480.0,0.649201]
[1728069295895,0.17979352,62481.0,62480.0,0.645201]
[1728069296124,0.17979352,62481.0,62480.0,0.649201]
[1728069297026,0.17979352,62481.0,62480.0,0.644201]
[1728069297255,0.17979352,62481.0,62480.0,0.649201]
[1728069297469,0.17979352,62481.0,62480.0,0.76563289]
[1728069297902,0.17979352,62481.0,62480.0,0.77063289]
[1728069298362,0.08779352,62481.0,62480.0,0.77063289]
[1728069298627,0.08779352,62481.0,62480.0,0.76563289]
[1728069298866,0.005821,62481.0,62480.0,0.76563289]
[1728069299531,0.005821,62481.0,62480.0,0.77163289]
[1728069299753,0.000821,62481.0,62480.0,0.77163289]
[1728069300444,0.005821,62481.0,62480.0,0.77163289]
[1728069300668,0.000821,62481.0,62480.0,0.77163289]
[1728069301141,0.005821,62481.0,62480.0,0.77163289]
[1728069302520,0.000821,62481.0,62480.0,0.77163289]
[1728069304548,0.005821,62481.0,62480.0,0.77163289]
[1728069305452,0.000821,62481.0,62480.0,0.76563289]
[1728069305932,0.00889352,62481.0,62480.0,0.77063289]
[1728069306178,0.18439352,62481.0,62480.0,0.49015]
[1728069306425,0.18439352,62481.0,62480.0,0.650201]
[1728069306636,0.19547391,62481.0,62480.0,0.650201]
[1728069306898,0.19742337,62481.0,62480.0,0.650201]
[1728069307125,0.19547391,62481.0,62480.0,0.650201]
[1728069307335,0.19547391,62481.0,62480.0,0.645201]
[1728069307570,0.19547391,62481.0,62480.0,0.646201]
[1728069307785,0.19547391,62481.0,62480.0,0.650201]
[1728069308217,0.18439352,62481.0,62480.0,0.640201]
[1728069308433,0.19545328,62481.0,62480.0,0.647201]
[1728069308888,0.08829352,62481.0,62480.0,0.647201]
[1728069309102,0.00889352,62481.0,62480.0,0.647201]
[1728069310444,0.17659352,62481.0,62480.0,0.647201]
[1728069310667,0.18764297,62481.0,62480.0,0.647201]
[1728069310895,0.17659352,62481.0,62480.0,0.647201]
[1728069311556,0.18764297,62481.0,62480.0,0.647201]
[1728069311777,0.17659352,62481.0,62480.0,0.647201]
[1728069311999,0.17854298,62481.0,62480.0,0.647201]
[1728069312266,0.08499352,62481.0,62480.0,0.647201]
[1728069313154,0.18169352,62481.0,62480.0,0.48715]
[1728069313376,0.18169352,62481.0,62480.0,0.647201]
[1728069313595,0.19274685,62481.0,62480.0,0.647201]
[1728069314046,0.19469631,62481.0,62480.0,0.647201]
[1728069326847,0.19469631,62481.0,62480.0,0.48715]
[1728069327080,0.19469631,62481.0,62480.0,0.007]
[1728069327318,0.40278314,62481.0,62480.0,0.007]
[1728069327546,0.40278314,62481.0,62463.0,0.320185]
[1728069327547,0.00307252,62464.0,62463.0,0.320185]
[1728069327773,0.00307252,62464.0,62463.0,0.480279]
[1728069327997,0.00502198,62464.0,62463.0,0.480279]
[1728069329145,0.00502198,62464.0,62463.0,0.487279]
[1728069329634,0.00194946,62464.0,62463.0,0.70231089]
[1728069329891,0.2405041,62472.0,62471.0,0.160074]
[1728069330110,0.2405041,62472.0,62471.0,0.28050589]
[1728069330330,0.00307252,62473.0,62471.0,0.28050589]
[1728069330331,0.00307252,62473.0,62472.0,0.160071]
[1728069331880,0.00307252,62473.0,62472.0,0.170071]
[1728069333365,0.00307252,62473.0,62472.0,0.181071]
[1728069333595,0.00307252,62473.0,62472.0,0.36434441]
[1728069336068,0.00307252,62474.0,62473.0,0.160069]
[1728069336294,0.00807252,62474.0,62473.0,0.160069]
[1728069338193,0.00807252,62474.0,62473.0,0.169069]
[1728069338399,0.00807252,62474.0,62473.0,0.18617283]
[1728069338828,0.00807252,62474.0,62473.0,0.19617283]
[1728069339039,0.00889352,62474.0,62473.0,0.19617283]
[1728069339987,0.00889352,62474.0,62473.0,0.179069]
[1728069340222,0.00889352,62474.0,62473.0,0.19616944]
[1728069342438,0.00389352,62474.0,62473.0,0.19616944]
[1728069342664,0.00389352,62474.0,62473.0,0.44215615]
[1728069342665,0.000821,62474.0,62473.0,0.44215615]
[1728069343123,0.000821,62474.0,62473.0,0.54215615]
[1728069343381,0.000821,62474.0,62473.0,0.54805571]
[1728069343621,0.000821,62474.0,62473.0,0.83003305]
[1728069343862,0.000821,62474.0,62473.0,0.81103305]
[1728069344094,0.000821,62474.0,62473.0,0.82091928]
[1728069344325,0.000821,62474.0,62473.0,0.66034124]
[1728069344567,0.000821,62474.0,62473.0,0.64634124]
[1728069344817,0.000821,62474.0,62473.0,0.66034124]
[1728069345471,0.000821,62474.0,62473.0,0.74570345]
[1728069345690,0.000821,62474.0,62473.0,0.75970345]
[1728069346149,0.000821,62474.0,62473.0,0.74570345]
[1728069346570,0.000821,62474.0,62473.0,0.75970345]
[1728069346777,0.000821,62474.0,62473.0,0.74570345]
[1728069347047,0.000821,62474.0,62473.0,0.75956529]
[1728069347514,0.000821,62474.0,62473.0,0.66420207]
[1728069348365,0.000821,62474.0,62473.0,0.73567124]
[1728069348814,0.000821,62474.0,62473.0,0.73566044]
[1728069350623,0.000821,62474.0,62473.0,0.71881408]
[1728069350850,0.000821,62474.0,62473.0,0.73561721]
[1728069351308,0.000821,62474.0,62473.0,0.66415884]
[1728069352179,0.000821,62474.0,62473.0,0.66415605]
[1728069353300,0.000821,62474.0,62473.0,0.77590865]
[1728069353745,0.000821,62474.0,62473.0,1.37633612]
[1728069354232,0.000821,62474.0,62473.0,1.37632218]
[1728069356000,0.000821,62474.0,62473.0,1.36232218]
[1728069356484,0.000821,62474.0,62473.0,1.37632218]
[1728069356710,0.000821,62474.0,62473.0,1.31470858]
[1728069356929,0.000821,62474.0,62473.0,1.30070858]
[1728069357154,0.000821,62474.0,62473.0,1.31470858]
[1728069357587,0.000821,62474.0,62473.0,1.36232218]
[1728069357829,0.000821,62474.0,62473.0,1.37634069]
[1728069358047,0.000821,62474.0,62473.0,1.37634068]
[1728069358466,0.000821,62474.0,62473.0,1.32872708]
[1728069358917,0.000821,62474.0,62473.0,1.34272708]
[1728069359129,0.000821,62474.0,62473.0,1.39031969]
[1728069359336,0.000821,62474.0,62473.0,1.32872708]
[1728069359763,0.000821,62474.0,62473.0,1.34272708]
[1728069360189,0.000821,62474.0,62473.0,1.32872708]
[1728069361279,0.000821,62474.0,62473.0,1.20849961]
[1728069361492,0.000821,62474.0,62473.0,1.34272708]
[1728069361931,0.000821,62474.0,62473.0,1.32872708]
[1728069362614,0.000821,62474.0,62473.0,1.34272708]
[1728069363094,0.000821,62474.0,62473.0,1.31472708]
[1728069363326,0.000821,62474.0,62473.0,1.32872708]
[1728069363780,0.000821,62474.0,62473.0,1.31472708]
[1728069364002,0.000821,62474.0,62473.0,1.32872708]
[1728069364261,0.000821,62474.0,62473.0,1.31472708]
[1728069364485,0.000821,62474.0,62473.0,1.32872708]
[1728069364933,0.000821,62474.0,62473.0,1.31472708]
[1728069365144,0.000821,62474.0,62473.0,1.18049961]
[1728069365381,0.000821,62474.0,62473.0,1.30072708]
[1728069365861,0.000821,62474.0,62473.0,1.31472708]
[1728069366525,0.000821,62474.0,62473.0,1.29792218]
[1728069366786,0.000821,62474.0,62473.0,1.32871092]
[1728069366997,0.000821,62474.0,62473.0,1.31192218]
[1728069367256,0.000821,62474.0,62473.0,1.32872965]
[1728069372487,0.000821,62481.0,62480.0,0.38027847]
[1728069372702,0.2405041,62489.0,62488.0,0.26003]
[1728069372930,0.2405041,62489.0,62488.0,1.04034165]
[1728069373407,0.000821,62490.0,62489.0,0.260028]
[1728069373642,0.000821,62490.0,62489.0,0.92005493]
[1728069374532,0.17814298,62490.0,62489.0,0.65686822]
[1728069374988,0.17814298,62490.0,62489.0,0.649108]
[1728069375443,0.17814298,62490.0,62489.0,0.659108]
[1728069375964,0.17814298,62490.0,62489.0,0.649108]
[1728069376211,0.18314298,62490.0,62489.0,0.48708]
[1728069376457,0.18314298,62490.0,62489.0,0.652108]
[1728069376700,0.18314298,62490.0,62489.0,0.647108]
[1728069376940,0.18314298,62490.0,62489.0,0.48708]
[1728069377182,0.18314298,62490.0,62489.0,0.49308]
[1728069377421,0.18314298,62490.0,62489.0,0.653108]
[1728069377635,0.18414298,62490.0,62489.0,0.653108]
[1728069377854,0.18314298,62490.0,62489.0,0.647108]
[1728069378090,0.18314298,62490.0,62489.0,0.48008]
[1728069378351,0.18314298,62490.0,62489.0,0.48408]
[1728069378583,0.18314298,62490.0,62489.0,0.644108]
[1728069378814,0.18314298,62490.0,62489.0,0.48008]
[1728069379027,0.18314298,62490.0,62489.0,0.640108]
[1728069379270,0.18414298,62490.0,62489.0,0.640108]
[1728069379764,0.18714298,62490.0,62489.0,0.640108]
[1728069380639,0.18414298,62490.0,62489.0,0.640108]
[1728069380900,0.18514298,62490.0,62489.0,0.640108]
[1728069381125,0.18314298,62490.0,62489.0,0.640108]
[1728069381800,0.18314298,62490.0,62489.0,0.82336954]
[1728069382031,0.18314298,62490.0,62489.0,0.82836954]
[1728069382529,0.18314298,62490.0,62489.0,0.82536954]
[1728069382761,0.18314298,62490.0,62489.0,0.82336954]
[1728069382977,0.18314298,62490.0,62489.0,0.82936954]
[1728069383206,0.18314298,62490.0,62489.0,0.83336954]
[1728069383934,0.18314298,62490.0,62489.0,0.646108]
[1728069384158,0.18314298,62490.0,62489.0,0.643108]
[1728069384382,0.18314298,62490.0,62489.0,0.648108]
[1728069384835,0.18314298,62490.0,62489.0,0.643108]
[1728069385056,0.18314298,62490.0,62489.0,0.647108]
[1728069385485,0.18314298,62490.0,62489.0,0.644108]
[1728069385726,0.18314298,62490.0,62489.0,0.640108]
[1728069385956,0.18314298,62490.0,62489.0,0.645108]
[1728069386164,0.18314298,62490.0,62489.0,0.642108]
[1728069386403,0.18314298,62490.0,62489.0,0.643108]
[1728069387106,0.18314298,62490.0,62489.0,0.640108]
[1728069387346,0.18314298,62490.0,62489.0,0.82336954]
[1728069387577,0.18314298,62490.0,62489.0,0.82836954]
[1728069387578,0.08629352,62490.0,62489.0,0.82836954]
[1728069388231,0.08629352,62490.0,62489.0,0.82536954]
[1728069388474,0.08629352,62490.0,62489.0,0.82736954]
[1728069388694,0.08824298,62490.0,62489.0,0.82536954]
[1728069388924,0.08824298,62490.0,62489.0,0.82436954]
[1728069389155,0.08824298,62490.0,62489.0,0.641108]
[1728069389386,0.08824298,62490.0,62489.0,0.640108]
[1728069389619,0.08824298,62490.0,62489.0,0.646108]
[1728069389862,0.08824298,62490.0,62489.0,0.640108]
[1728069390080,0.08824298,62490.0,62489.0,0.643108]
[1728069390760,0.08824298,62490.0,62489.0,0.650108]
[1728069391334,0.08824298,62490.0,62489.0,0.643108]
[1728069391428,0.08824298,62490.0,62489.0,0.649108]
[1728069391861,0.08824298,62490.0,62489.0,0.643108]
[1728069392310,0.08824298,62490.0,62489.0,0.646108]
[1728069392524,0.08824298,62490.0,62489.0,0.651108]
[1728069392979,0.08824298,62490.0,62489.0,0.646108]
[1728069393424,0.08824298,62490.0,62489.0,0.648108]
[1728069393657,0.08824298,62490.0,62489.0,0.640108]
[1728069393996,0.08824298,62490.0,62489.0,0.643108]
[1728069394517,0.08824298,62490.0,62489.0,0.640108]
[1728069394729,0.08824298,62490.0,62489.0,0.643108]
[1728069394976,0.08824298,62490.0,62489.0,0.645108]
[1728069395427,0.08629352,62490.0,62489.0,0.645108]
[1728069396384,0.08824298,62490.0,62489.0,0.645108]
[1728069397115,0.08629352,62490.0,62489.0,0.645108]
[1728069397607,0.08824298,62490.0,62489.0,0.645108]
[1728069400796,0.08629352,62490.0,62489.0,0.645108]
[1728069401908,0.005821,62490.0,62489.0,0.82836954]
[1728069402125,0.000821,62490.0,62489.0,0.99155625]
[1728069402844,0.000821,62490.0,62489.0,0.98655625]
[1728069403070,0.000821,62490.0,62489.0,1.00755625]
[1728069403511,0.000821,62490.0,62489.0,0.99655625]
[1728069404013,0.000821,62490.0,62489.0,1.00955625]
[1728069404243,0.005821,62490.0,62489.0,0.99955625]
[1728069404471,0.005821,62490.0,62489.0,0.99855625]
[1728069404941,0.005821,62490.0,62489.0,0.84736954]
[1728069405211,0.00389352,62490.0,62489.0,0.84736954]
[1728069405435,0.00889352,62490.0,62489.0,0.83536954]
[1728069405647,0.00889352,62490.0,62489.0,0.84736954]
[1728069406131,0.00889352,62490.0,62489.0,0.83536954]
[1728069406346,0.00889352,62490.0,62489.0,0.84836954]
[1728069406997,0.00889352,62490.0,62489.0,0.83536954]
[1728069407218,0.00889352,62490.0,62489.0,0.84836954]
[1728069407705,0.005821,62490.0,62489.0,0.84836954]
[1728069408550,0.00889352,62490.0,62489.0,0.84836954]
[1728069409801,0.005821,62490.0,62489.0,0.84836954]
[1728069412507,0.000821,62490.0,62489.0,0.84836954]
[1728069412730,0.005821,62490.0,62489.0,0.84836954]
[1728069421380,0.000821,62490.0,62489.0,0.84836954]
[1728069421595,0.005821,62490.0,62489.0,0.84836954]
[1728069422450,0.005821,62490.0,62489.0,0.83536954]
[1728069422674,0.34051852,62490.0,62489.0,0.50208]
[1728069422895,0.18049352,62490.0,62489.0,0.50208]
[1728069423122,0.18049352,62490.0,62489.0,0.49008]
[1728069423598,0.18049352,62490.0,62489.0,0.48908]
[1728069423819,0.18049352,62490.0,62489.0,0.48308]
[1728069424272,0.18049352,62490.0,62489.0,0.48008]
[1728069424773,0.18149352,62490.0,62489.0,0.48008]
[1728069425654,0.18149352,62490.0,62489.0,0.640108]
[1728069425872,0.18149352,62490.0,62489.0,0.48008]
[1728069426117,0.18049352,62490.0,62489.0,0.48008]
[1728069426583,0.18149352,62490.0,62489.0,0.48008]
[1728069427043,0.18149352,62490.0,62489.0,0.640108]
[1728069427258,0.18249352,62490.0,62489.0,0.640108]
[1728069427518,0.18149352,62490.0,62489.0,0.640108]
[1728069427738,0.18249352,62490.0,62489.0,0.640108]
[1728069427967,0.18149352,62490.0,62489.0,0.640108]
[1728069428220,0.18344298,62490.0,62489.0,0.640108]
[1728069428928,0.18444298,62490.0,62489.0,0.640108]
[1728069429579,0.18244298,62490.0,62489.0,0.641108]
[1728069432996,0.18244298,62490.0,62489.0,0.640108]
[1728069433280,0.00889352,62490.0,62489.0,0.640108]
[1728069433500,0.00889352,62490.0,62489.0,0.641108]
[1728069434863,0.00889352,62490.0,62489.0,0.640108]
[1728069435751,0.00889352,62490.0,62489.0,0.82330879]
[1728069435987,0.00889352,62490.0,62489.0,0.82530879]
[1728069436198,0.005821,62490.0,62489.0,0.82630879]
[1728069436412,0.000821,62490.0,62489.0,0.82430879]
[1728069436653,0.000821,62490.0,62489.0,0.82330879]
[1728069436864,0.000821,62490.0,62489.0,0.84030879]
[1728069437720,0.000821,62490.0,62489.0,0.83230879]
[1728069437958,0.000821,62490.0,62489.0,0.84030879]
[1728069438189,0.000821,62490.0,62489.0,0.83130879]
[1728069438401,0.000821,62490.0,62489.0,0.84030879]
[1728069439510,0.000821,62490.0,62489.0,0.83230879]
[1728069439745,0.000821,62490.0,62489.0,0.84030879]
[1728069440809,0.000821,62490.0,62489.0,0.85672488]
[1728069441770,0.000821,62490.0,62489.0,0.85674139]
[1728069442217,0.000821,62502.0,62490.0,0.123]
[1728069442454,0.000821,62502.0,62499.0,0.51860279]
[1728069443740,0.000821,62502.0,62499.0,0.52501479]
[1728069444363,0.000821,62502.0,62499.0,0.355814]
[1728069444528,0.000821,62502.0,62499.0,0.36361479]
[1728069444958,0.000861,62500.0,62499.0,0.36361479]
[1728069445516,0.000861,62500.0,62499.0,0.37761479]
[1728069445743,0.000861,62500.0,62499.0,0.37120279]
[1728069445988,0.00393352,62500.0,62499.0,0.188002]
[1728069446437,0.01088298,62500.0,62499.0,0.188002]
[1728069446674,0.17088298,62500.0,62499.0,0.028]
[1728069447152,0.17088298,62500.0,62499.0,0.014]
[1728069447404,0.01002198,62492.0,62491.0,0.48007]
[1728069448119,0.10252198,62492.0,62491.0,0.48007]
[1728069448618,0.10252198,62492.0,62491.0,0.640093]
[1728069449051,0.10352198,62492.0,62491.0,0.640093]
[1728069449464,0.10352198,62492.0,62491.0,0.48007]
[1728069449736,0.10352198,62492.0,62491.0,0.640093]
[1728069449953,0.10552198,62492.0,62491.0,0.640093]
[1728069450198,0.10352198,62492.0,62491.0,0.640093]
[1728069450419,0.10552198,62492.0,62491.0,0.640093]
[1728069450658,0.10552198,62492.0,62491.0,0.48007]
[1728069451093,0.10552198,62492.0,62491.0,0.640093]
[1728069451341,0.10552198,62492.0,62491.0,0.48007]
[1728069451555,0.26554198,62492.0,62491.0,0.48007]
[1728069451762,0.34164198,62492.0,62491.0,0.48007]
[1728069451980,0.34064198,62492.0,62491.0,0.48007]
[1728069452192,0.33864198,62492.0,62491.0,0.48007]
[1728069452428,0.34164198,62492.0,62491.0,0.48007]
[1728069452663,0.34264198,62492.0,62491.0,0.48007]
[1728069452884,0.18162198,62492.0,62491.0,0.48007]
[1728069453353,0.18262198,62492.0,62491.0,0.48007]
[1728069454828,0.17962198,62492.0,62491.0,0.48007]
[1728069455256,0.18162198,62492.0,62491.0,0.48007]
[1728069455477,0.18262198,62492.0,62491.0,0.48007]
[1728069455674,0.18262198,62492.0,62491.0,0.640093]
[1728069455675,0.17962198,62492.0,62491.0,0.640093]
[1728069455898,0.18162198,62492.0,62491.0,0.48007]
[1728069456129,0.01107252,62492.0,62491.0,0.640093]
[1728069456978,0.01189352,62492.0,62491.0,0.640093]
[1728069457421,0.01384298,62492.0,62491.0,0.640093]
[1728069457826,0.01184298,62492.0,62491.0,0.640093]
[1728069458241,0.01084298,62492.0,62491.0,0.640093]
[1728069458445,0.01184298,62492.0,62491.0,0.640093]
[1728069458688,0.00989352,62492.0,62491.0,0.640093]
[1728069458836,0.01084298,62492.0,62491.0,0.640093]
[1728069459073,0.01184298,62492.0,62491.0,0.655093]
[1728069459487,0.01084298,62492.0,62491.0,0.640093]
[1728069459690,0.01084298,62492.0,62491.0,0.648093]
[1728069460419,0.01184298,62492.0,62491.0,0.657093]
[1728069461047,0.00989352,62492.0,62491.0,0.657093]
[1728069461503,0.00889352,62492.0,62491.0,0.640093]
[1728069461715,0.00889352,62492.0,62491.0,0.648093]
[1728069461927,0.00989352,62492.0,62491.0,0.657093]
[1728069462112,0.01184298,62492.0,62491.0,0.657093]
[1728069463074,0.00989352,62492.0,62491.0,0.657093]
[1728069463283,0.01184298,62492.0,62491.0,0.657093]
[1728069465979,0.31320808,62500.0,62495.0,0.160011]
[1728069466400,0.31320808,62500.0,62494.0,0.32003]
[1728069466627,0.31320808,62500.0,62496.0,0.160009]
[1728069466836,0.159998,62501.0,62497.0,0.160006]
[1728069467714,0.16,62500.0,62496.0,0.160009]
[1728069467852,0.160003,62499.0,62496.0,0.160009]
[1728069469201,0.160003,62499.0,62494.0,0.160014]
[1728069469423,0.001,62499.0,62495.0,0.160012]
[1728069469676,0.161003,62499.0,62495.0,0.160012]
[1728069469879,0.160005,62498.0,62493.0,0.320035]
[1728069470215,0.160005,62498.0,62494.0,0.160013]
[1728069470429,0.160005,62498.0,62493.0,0.320035]
[1728069470621,0.001,62499.0,62495.0,0.160011]
[1728069470740,0.002,62499.0,62495.0,0.160011]
[1728069470942,0.162003,62499.0,62495.0,0.160011]
[1728069471221,0.002,62499.0,62495.0,0.160011]
[1728069471431,0.002,62499.0,62498.0,0.160005]
[1728069471660,0.002,62499.0,62498.0,0.34320579]
[1728069471867,0.000821,62502.0,62501.0,0.159997]
[1728069473206,0.000821,62502.0,62501.0,0.162997]
[1728069474483,0.000821,62502.0,62501.0,0.159997]
[1728069474785,0.000821,62502.0,62501.0,0.175997]
[1728069475252,0.000821,62502.0,62501.0,0.159997]
[1728069475472,0.000821,62502.0,62501.0,0.166997]
[1728069475672,0.000821,62502.0,62501.0,0.173997]
[1728069475917,0.000821,62502.0,62501.0,0.166997]
[1728069476373,0.000821,62502.0,62501.0,0.174997]
[1728069477522,0.000821,62502.0,62501.0,0.167997]
[1728069477731,0.000821,62502.0,62501.0,0.159997]
[1728069477942,0.000821,62502.0,62501.0,0.175997]
[1728069478359,0.000821,62502.0,62501.0,0.168997]
[1728069478570,0.000821,62502.0,62501.0,0.017]
[1728069478571,0.077421,62502.0,62501.0,0.017]
[1728069478833,0.55708759,62502.0,62501.0,0.017]
[1728069479207,0.62895209,62502.0,62501.0,0.017]
[1728069479379,0.62695209,62502.0,62501.0,0.017]
[1728069479581,0.431415,62502.0,62501.0,0.017]
[1728069480621,0.431415,62502.0,62501.0,0.009]
[1728069481209,0.1,62501.0,62491.0,0.001642]
[1728069481450,0.160018,62493.0,62491.0,0.001642]
[1728069481672,0.160015,62494.0,62491.0,0.001642]
[1728069481907,0.16001,62496.0,62492.0,0.160018]
[1728069482129,0.480017,62498.0,62493.0,0.160017]
[1728069482348,0.160008,62497.0,62493.0,0.160017]
[1728069482791,0.160008,62497.0,62491.0,0.001642]
[1728069483002,0.160011,62496.0,62492.0,0.16002]
[1728069483216,0.165011,62496.0,62492.0,0.16002]
[1728069483633,0.005,62496.0,62493.0,0.160016]
[1728069483906,0.16501,62496.0,62491.0,0.161663]
[1728069484129,0.16501,62496.0,62493.0,0.160017]
[1728069484353,0.17001,62496.0,62492.0,0.16002]
[1728069484586,0.16001,62496.0,62492.0,0.16002]
[1728069484798,0.005,62496.0,62491.0,0.001642]
[1728069485223,0.005,62496.0,62493.0,0.160017]
[1728069485642,0.005,62496.0,62491.0,0.001642]
[1728069485643,0.004,62496.0,62491.0,0.001642]
[1728069485874,0.008,62496.0,62494.0,0.160014]
[1728069486097,0.004,62496.0,62494.0,0.160014]
[1728069486322,0.004,62496.0,62495.0,0.160012]
[1728069487000,0.007,62496.0,62495.0,0.160012]
[1728069487204,0.003,62496.0,62495.0,0.160012]
[1728069487719,0.007,62496.0,62495.0,0.160012]
[1728069487950,0.003,62496.0,62495.0,0.160012]
[1728069488178,0.02508751,62499.0,62496.0,0.160009]
[1728069489304,0.16,62500.0,62496.0,0.160009]
[1728069489753,0.002,62499.0,62496.0,0.160009]
[1728069490236,0.002,62499.0,62495.0,0.001]
[1728069490458,0.002,62499.0,62496.0,0.16001]
[1728069490703,0.005,62499.0,62496.0,0.16001]
[1728069490920,0.005,62499.0,62497.0,0.160007]
[1728069491375,0.005,62499.0,62495.0,0.16001]
[1728069491614,0.165003,62499.0,62495.0,0.16001]
[1728069491824,0.163003,62499.0,62495.0,0.16001]
[1728069492045,0.160003,62499.0,62495.0,0.16001]
[1728069492267,0.163003,62499.0,62495.0,0.16001]
[1728069492492,0.163003,62499.0,62495.0,0.161652]
[1728069492740,0.165003,62499.0,62495.0,0.161652]
[1728069493190,0.003,62499.0,62495.0,0.161652]
[1728069493420,0.16,62500.0,62496.0,0.160009]
[1728069493655,0.02508602,62499.0,62496.0,0.160009]
[1728069494434,0.02808602,62499.0,62496.0,0.160009]
[1728069494640,0.02608602,62499.0,62496.0,0.160009]
[1728069495174,0.02508602,62499.0,62496.0,0.160009]
[1728069496061,0.02508602,62499.0,62497.0,0.160007]
[1728069496289,0.02608602,62499.0,62495.0,0.001642]
[1728069496511,0.02608602,62499.0,62496.0,0.160009]
[1728069496721,0.02708602,62499.0,62496.0,0.160009]
[1728069497166,0.02608602,62499.0,62496.0,0.160009]
[1728069497618,0.02508602,62499.0,62495.0,0.001642]
[1728069497835,0.16001,62496.0,62495.0,0.001642]
[1728069500040,0.16001,62496.0,62495.0,0.002642]
[1728069500473,0.16001,62496.0,62495.0,0.001642]
[1728069500744,0.16301,62496.0,62495.0,0.001642]
[1728069500985,0.16001,62496.0,62495.0,0.001642]
[1728069501427,0.16301,62496.0,62495.0,0.001642]
[1728069501642,0.24061,62496.0,62495.0,0.001642]
[1728069502083,0.23861,62496.0,62495.0,0.001642]
[1728069502310,0.24361,62496.0,62495.0,0.001642]
[1728069502963,0.34341,62496.0,62495.0,0.001642]
[1728069503181,0.43741,62496.0,62495.0,0.001642]
[1728069503411,0.5433119,62496.0,62495.0,0.002642]
[1728069503619,0.5383119,62496.0,62495.0,0.002642]
[1728069503829,0.5353119,62496.0,62495.0,0.002642]
[1728069504055,0.5453119,62496.0,62495.0,0.003642]
[1728069504283,0.5353119,62496.0,62495.0,0.002642]
[1728069504540,0.43241,62496.0,62495.0,0.001642]
[1728069504784,0.44941,62496.0,62495.0,0.003642]
[1728069505009,0.5453119,62496.0,62495.0,0.003642]
[1728069505249,0.33735631,62496.0,62495.0,0.003642]
[1728069505487,0.117,62496.0,62495.0,0.003642]
[1728069505722,0.017,62496.0,62495.0,0.003642]
[1728069505941,0.20209776,62496.0,62495.0,0.003642]
[1728069506371,0.19209776,62496.0,62495.0,0.002642]
[1728069506849,0.02908776,62496.0,62495.0,0.001642]
[1728069507262,0.03308776,62496.0,62495.0,0.161654]
[1728069507465,0.19309776,62496.0,62495.0,0.001642]
[1728069507694,0.03308776,62496.0,62495.0,0.001642]
[1728069508673,0.008,62496.0,62495.0,0.001642]
[1728069510027,0.16801,62496.0,62495.0,0.001642]
[1728069513820,0.008,62496.0,62495.0,0.001642]
[1728069514262,0.16801,62496.0,62495.0,0.001642]
[1728069514704,0.008,62496.0,62495.0,0.001642]
[1728069515173,0.008,62496.0,62495.0,0.161654]
[1728069518948,0.008,62496.0,62495.0,0.001642]
[1728069520100,0.008,62496.0,62495.0,0.161654]
[1728069520750,0.16801,62496.0,62495.0,0.001642]
[1728069521455,0.008,62496.0,62495.0,0.001642]
[1728069521694,0.05598076,62496.0,62495.0,0.001642]
[1728069522645,0.008,62496.0,62495.0,0.001642]
[1728069523117,0.16801,62496.0,62495.0,0.001642]
[1728069523550,0.23204199,62496.0,62495.0,0.001642]
[1728069523766,0.23804199,62496.0,62495.0,0.001642]
[1728069524005,0.07503199,62496.0,62495.0,0.001642]
[1728069524222,0.07203199,62496.0,62495.0,0.001642]
[1728069524449,0.07303199,62496.0,62495.0,0.001642]
[1728069524674,0.09704265,62496.0,62495.0,0.001642]
[1728069525536,0.09804265,62496.0,62495.0,0.001642]
[1728069525948,0.25805265,62496.0,62495.0,0.001642]
[1728069526168,0.28314028,62496.0,62495.0,0.001642]
[1728069526410,0.28214028,62496.0,62495.0,0.001642]
[1728069526630,0.28114028,62496.0,62495.0,0.001642]
[1728069526838,0.28214028,62496.0,62495.0,0.001642]
[1728069527077,0.28214028,62496.0,62495.0,0.161654]
[1728069527078,0.12313028,62496.0,62495.0,0.161654]
[1728069527292,0.07307933,62496.0,62495.0,0.161654]
[1728069527507,0.002,62496.0,62495.0,0.161654]
[1728069527722,0.07307933,62496.0,62495.0,0.161654]
[1728069529115,0.07407933,62496.0,62495.0,0.161654]
[1728069529346,0.07408167,62496.0,62495.0,0.161654]
[1728069530025,0.0740804,62496.0,62495.0,0.161654]
[1728069533709,0.0740804,62496.0,62495.0,0.44289384]
[1728069533710,0.002,62496.0,62495.0,0.44289384]
[1728069534876,0.002,62496.0,62495.0,0.52339384]
[1728069534877,0.001,62496.0,62495.0,0.52339384]
[1728069535101,0.000821,62501.0,62500.0,0.16]
[1728069536895,0.000821,62501.0,62500.0,0.164]
[1728069537592,0.078121,62501.0,62500.0,0.004]